{"text_format":"1","workbook":"xlsx","n_sheets":1,"sheets":["asd2"],"not_rendered":{"charts":0,"images":0,"macros":1,"external_links":0,"defined_names":4,"comments":0,"pivot_tables":0},"unopened":[],"bounds":{"document_bytes":16777216,"sheet_cells":100000,"rows_first":2000,"rows_last":500,"rows_between":2000,"halvings":0,"cell_chars":16384,"cell_head_chars":4096},"cells_cut":0,"cells_raw":0,"read":"whole","date_system":"1900"}

{"sheet":"asd2","index":0,"n_rows":7,"n_cols":64,"rows_kept":7,"cut":false,"hidden":false,"merged":[]}
["كود ","الاسم ","العمر","النوع","الوظيفه","الحاله الاجتماعيه","رقم التليفون","الرقم القومي ","العنوان تفصيلي","جهه الابلاغ","تاريخ الابلاغ","تاريخ التقصي","التشخيص المبدئي","التشخيص النهائي","تاريخ الخروج","مخالط","درجه القرابه","العمر ","الوظيفه","مخالط","درجه القرابه","العمر ","الوظيفه","مخالط","درجه القرابه","العمر ","الوظيفه","مخالط","درجه القرابه","العمر ","الوظيفه","مخالط","درجه القرابه","العمر ","الوظيفه","مخالط","درجه القرابه","العمر ","الوظيفه","مخالط","درجه القرابه","العمر ","الوظيفه","مخالط","درجه القرابه","العمر ","الوظيفه","مخالط","درجه القرابه","العمر ","الوظيفه","مخالط","درجه القرابه","العمر ","الوظيفه"]
[null,null,null,null,null,null,null,null,null,null,null,null,null,null,null,null,null,null,null,null,null,null,null,null,null,null,null,null,null,null,null,null,null,null,null,null,null,null,null,null,null,null,null,null,null,null,null,null,null,null,null,null,null,null,null,null,5,{"$f":"IF(#REF!=\"\",\"\",VLOOKUP(#REF!,soso,32,0))","v":{"$error":"#REF!"}},{"$f":"IF(#REF!=\"\",\"\",VLOOKUP(#REF!,soso,33,0))","v":{"$error":"#REF!"}},{"$f":"IF(#REF!=\"\",\"\",VLOOKUP(#REF!,soso,34,0))","v":{"$error":"#REF!"}},{"$f":"IF(#REF!=\"\",\"\",VLOOKUP(#REF!,soso,35,0))","v":{"$error":"#REF!"}},null,null,"زوج"]
[null,null,null,null,null,null,null,null,null,null,null,null,null,null,null,null,null,null,null,null,null,null,null,null,null,null,null,null,null,null,null,null,null,null,null,null,null,null,null,null,null,null,null,null,null,null,null,null,null,null,null,null,null,null,null,null,6,{"$f":"IF(#REF!=\"\",\"\",VLOOKUP(#REF!,soso,36,0))","v":{"$error":"#REF!"}},{"$f":"IF(#REF!=\"\",\"\",VLOOKUP(#REF!,soso,37,0))","v":{"$error":"#REF!"}},{"$f":"IF(#REF!=\"\",\"\",VLOOKUP(#REF!,soso,38,0))","v":{"$error":"#REF!"}},{"$f":"IF(#REF!=\"\",\"\",VLOOKUP(#REF!,soso,39,0))","v":{"$error":"#REF!"}},null,null,"زوجه"]
[null,null,null,null,null,null,null,null,null,null,null,null,null,null,null,null,null,null,null,null,null,null,null,null,null,null,null,null,null,null,null,null,null,null,null,null,null,null,null,null,null,null,null,null,null,null,null,null,null,null,null,null,null,null,null,null,7,{"$f":"IF(#REF!=\"\",\"\",VLOOKUP(#REF!,soso,40,0))","v":{"$error":"#REF!"}},{"$f":"IF(#REF!=\"\",\"\",VLOOKUP(#REF!,soso,41,0))","v":{"$error":"#REF!"}},{"$f":"IF(#REF!=\"\",\"\",VLOOKUP(#REF!,soso,42,0))","v":{"$error":"#REF!"}},{"$f":"IF(#REF!=\"\",\"\",VLOOKUP(#REF!,soso,43,0))","v":{"$error":"#REF!"}},null,null,"ابن"]
[null,null,null,null,null,null,null,null,null,null,null,null,null,null,null,null,null,null,null,null,null,null,null,null,null,null,null,null,null,null,null,null,null,null,null,null,null,null,null,null,null,null,null,null,null,null,null,null,null,null,null,null,null,null,null,null,8,{"$f":"IF(#REF!=\"\",\"\",VLOOKUP(#REF!,soso,44,0))","v":{"$error":"#REF!"}},{"$f":"IF(#REF!=\"\",\"\",VLOOKUP(#REF!,soso,45,0))","v":{"$error":"#REF!"}},{"$f":"IF(#REF!=\"\",\"\",VLOOKUP(#REF!,soso,46,0))","v":{"$error":"#REF!"}},{"$f":"IF(#REF!=\"\",\"\",VLOOKUP(#REF!,soso,47,0))","v":{"$error":"#REF!"}},null,null,"ابنه"]
[null,null,null,null,null,null,null,null,null,null,null,null,null,null,null,null,null,null,null,null,null,null,null,null,null,null,null,null,null,null,null,null,null,null,null,null,null,null,null,null,null,null,null,null,null,null,null,null,null,null,null,null,null,null,null,null,9,{"$f":"IF(#REF!=\"\",\"\",VLOOKUP(#REF!,soso,48,0))","v":{"$error":"#REF!"}},{"$f":"IF(#REF!=\"\",\"\",VLOOKUP(#REF!,soso,49,0))","v":{"$error":"#REF!"}},{"$f":"IF(#REF!=\"\",\"\",VLOOKUP(#REF!,soso,50,0))","v":{"$error":"#REF!"}},{"$f":"IF(#REF!=\"\",\"\",VLOOKUP(#REF!,soso,51,0))","v":{"$error":"#REF!"}}]
[null,null,null,null,null,null,null,null,null,null,null,null,null,null,null,null,null,null,null,null,null,null,null,null,null,null,null,null,null,null,null,null,null,null,null,null,null,null,null,null,null,null,null,null,null,null,null,null,null,null,null,null,null,null,null,null,10,{"$f":"IF(#REF!=\"\",\"\",VLOOKUP(#REF!,soso,52,0))","v":{"$error":"#REF!"}},{"$f":"IF(#REF!=\"\",\"\",VLOOKUP(#REF!,soso,53,0))","v":{"$error":"#REF!"}},{"$f":"IF(#REF!=\"\",\"\",VLOOKUP(#REF!,soso,54,0))","v":{"$error":"#REF!"}},{"$f":"IF(#REF!=\"\",\"\",VLOOKUP(#REF!,soso,55,0))","v":{"$error":"#REF!"}}]